bitfinex/quotes_BTCUSD_20250615
["timestamp","ask_amount","ask_price","bid_price","bid_amount"]
[1749999001494,4.71945285,105880.0,105870.0,0.2172301]
[1749999001724,4.74720797,105880.0,105870.0,0.37790322]
[1749999001943,4.74720797,105880.0,105870.0,0.21135406]
[1749999001944,4.77100108,105880.0,105870.0,0.21135406]
[1749999002164,0.04210363,105880.0,105870.0,0.45496287]
[1749999002379,0.03323745,105880.0,105870.0,0.29784287]
[1749999002609,0.00047261,105890.0,105880.0,0.23222595]
[1749999002867,0.34047261,105890.0,105880.0,0.26976909]
[1749999003094,0.01878139,105890.0,105880.0,0.26976909]
[1749999003319,0.00047261,105890.0,105880.0,0.29782235]
[1749999003531,0.00047261,105890.0,105880.0,0.39406411]
[1749999003990,0.03324914,105890.0,105880.0,0.43146846]
[1749999004210,0.03524914,105890.0,105880.0,0.43146846]
[1749999004875,0.00247261,105890.0,105880.0,0.43146846]
[1749999005079,0.00247261,105890.0,105880.0,0.4034152]
[1749999005294,0.00247261,105890.0,105880.0,0.45952172]
[1749999005498,0.00247261,105890.0,105880.0,0.42211737]
[1749999006342,0.00247261,105890.0,105880.0,0.44081955]
[1749999006763,0.00247261,105890.0,105880.0,0.63921305]
[1749999006970,0.00047261,105890.0,105880.0,0.63921305]
[1749999007385,0.00047261,105890.0,105880.0,0.64521305]
[1749999008635,0.00991574,105890.0,105880.0,0.42796474]
[1749999008837,0.00991574,105890.0,105880.0,0.49930435]
[1749999008838,0.52211778,105890.0,105880.0,0.49930435]
[1749999009046,0.72987973,105890.0,105880.0,0.37931453]
[1749999009258,0.73874557,105890.0,105880.0,0.44039268]
[1749999009464,0.72930244,105890.0,105880.0,0.27362821]
[1749999009687,0.71041573,105890.0,105880.0,0.0660002]
[1749999009895,1.15058007,105890.0,105880.0,0.2233602]
[1749999010140,1.15944601,105890.0,105880.0,0.09414716]
[1749999010375,1.15944606,105890.0,105880.0,0.25150716]
[1749999010581,1.05745052,105890.0,105880.0,0.24550716]
[1749999010790,1.06631651,105890.0,105880.0,0.24550716]
[1749999010991,1.06631651,105890.0,105880.0,0.24750716]
[1749999011204,1.06631651,105890.0,105880.0,0.09014716]
[1749999011427,1.08141651,105890.0,105880.0,0.09014716]
[1749999011665,1.0814165,105890.0,105880.0,0.09014716]
[1749999011875,1.05745052,105890.0,105880.0,0.25687181]
[1749999012082,1.06631651,105890.0,105880.0,0.24542716]
[1749999012288,1.06631652,105890.0,105880.0,0.26431637]
[1749999012500,0.53879143,105890.0,105880.0,0.41568589]
[1749999012714,0.54765743,105890.0,105880.0,0.21734825]
[1749999012938,0.53879143,105890.0,105880.0,0.21734825]
[1749999013151,0.56425743,105890.0,105880.0,0.2099036]
[1749999013578,1.06701658,105890.0,105880.0,0.2099436]
[1749999013797,1.05815052,105890.0,105880.0,0.2079436]
[1749999014029,1.0504166,105890.0,105880.0,0.21738825]
[1749999014245,1.04155052,105890.0,105880.0,0.4223342]
[1749999014451,1.05041659,105890.0,105880.0,0.23344111]
[1749999014657,1.05041659,105890.0,105880.0,0.41572589]
[1749999014897,1.05041659,105890.0,105880.0,0.42233388]
[1749999015111,1.04155052,105890.0,105880.0,0.21455159]
[1749999015335,1.0504164,105890.0,105880.0,0.21455157]
[1749999015566,1.05041639,105890.0,105880.0,0.2079436]
[1749999015784,1.13769974,105890.0,105880.0,0.2079436]
[1749999015999,1.05715052,105890.0,105880.0,0.2079436]
[1749999016438,1.05715052,105890.0,105880.0,0.21738825]
[1749999016678,1.04155052,105890.0,105880.0,0.41572589]
[1749999016902,1.04155052,105890.0,105880.0,0.2079436]
[1749999017333,0.86211859,105890.0,105880.0,0.41572571]
[1749999017552,0.86211805,105890.0,105880.0,0.42516991]
[1749999017767,0.35935878,105890.0,105880.0,0.43461393]
[1749999018011,0.00047261,105890.0,105880.0,0.54595569]
[1749999018237,0.00047261,105890.0,105880.0,0.59877925]
[1749999018679,0.00047261,105890.0,105880.0,0.57063229]
[1749999018901,0.00047261,105890.0,105880.0,0.59865426]
[1749999019122,0.00991574,105890.0,105880.0,0.59865426]
[1749999019369,0.00047261,105890.0,105880.0,0.57063229]
[1749999019588,0.00991565,105890.0,105880.0,0.57063229]
[1749999020025,0.10766202,105910.0,105890.0,0.21720544]
[1749999020244,8.929e-05,105910.0,105900.0,1.13277806]
[1749999020461,8.929e-05,105910.0,105900.0,0.58628088]
[1749999020694,8.929e-05,105910.0,105900.0,0.57973793]
[1749999020909,8.929e-05,105910.0,105900.0,0.57098019]
[1749999021119,8.929e-05,105910.0,105900.0,0.56443793]
[1749999021331,8.929e-05,105910.0,105900.0,0.57098025]
[1749999021544,8.929e-05,105910.0,105900.0,0.56443793]
[1749999021770,8.929e-05,105910.0,105900.0,0.608255]
[1749999021980,8.929e-05,105910.0,105900.0,0.60171265]
[1749999022193,8.929e-05,105910.0,105900.0,0.608255]
[1749999022404,8.929e-05,105910.0,105900.0,0.60171265]
[1749999022621,0.00208929,105910.0,105900.0,0.60171265]
[1749999022832,0.00895216,105910.0,105900.0,0.60171265]
[1749999023063,0.00895216,105910.0,105900.0,0.60831402]
[1749999023279,8.929e-05,105910.0,105900.0,0.60171265]
[1749999023493,8.929e-05,105910.0,105900.0,0.60831402]
[1749999023932,8.929e-05,105910.0,105900.0,0.60831401]
[1749999024154,0.00895216,105910.0,105900.0,0.59321401]
[1749999024385,8.929e-05,105910.0,105900.0,0.59321401]
[1749999024598,0.00895217,105910.0,105900.0,0.59321368]
[1749999024815,0.00895217,105910.0,105900.0,0.58661265]
[1749999025253,0.00895217,105910.0,105900.0,0.59321293]
[1749999025465,8.929e-05,105910.0,105900.0,0.54933793]
[1749999025756,8.929e-05,105910.0,105900.0,0.55593807]
[1749999025948,0.0089521,105910.0,105900.0,0.56443793]
[1749999026191,0.00895209,105910.0,105900.0,0.58633806]
[1749999026411,8.929e-05,105910.0,105900.0,0.58633806]
[1749999026632,8.929e-05,105910.0,105900.0,0.58633699]
[1749999026859,8.929e-05,105910.0,105900.0,0.53034161]
[1749999027055,8.929e-05,105910.0,105900.0,0.59855204]
[1749999027492,8.929e-05,105910.0,105900.0,0.6051493]
[1749999027719,8.929e-05,105910.0,105900.0,0.59855204]
[1749999027938,8.929e-05,105910.0,105900.0,0.60514929]
[1749999029958,8.929e-05,105910.0,105900.0,0.59855204]
[1749999030172,0.0159638,105920.0,105910.0,0.21716443]
[1749999030392,0.0159638,105920.0,105910.0,0.39846493]
[1749999030612,0.0159638,105920.0,105910.0,0.35118283]
[1749999030846,0.0159638,105920.0,105910.0,0.41376212]
[1749999031076,0.0159638,105920.0,105910.0,0.42926216]
[1749999031499,0.0159638,105920.0,105910.0,0.4292621]
[1749999031720,0.0159638,105920.0,105910.0,0.42266528]
[1749999031936,0.0159638,105920.0,105910.0,0.41376202]
[1749999032194,0.0159638,105920.0,105910.0,0.41376201]
[1749999032405,0.0179638,105920.0,105910.0,0.41376236]
[1749999032625,0.0179638,105920.0,105910.0,0.40716528]
[1749999032851,0.0179638,105920.0,105910.0,0.4297625]
[1749999033073,0.0179638,105920.0,105910.0,0.41549998]
[1749999033314,0.0179638,105920.0,105910.0,0.36718283]
[1749999033512,0.0179638,105920.0,105910.0,0.64854783]
[1749999033775,0.0179638,105920.0,105910.0,0.37377912]
[1749999034009,0.0179638,105920.0,105910.0,0.52542283]
[1749999034240,0.0179638,105920.0,105910.0,0.37377897]
[1749999034481,0.0179638,105920.0,105910.0,0.52554283]
[1749999034728,0.0179638,105920.0,105910.0,0.53213897]
[1749999035431,0.0150438,105920.0,105910.0,0.53213897]
[1749999035666,0.0150438,105920.0,105910.0,0.52754283]
[1749999035908,0.0150438,105920.0,105910.0,0.37577898]
[1749999036135,0.0150438,105920.0,105910.0,0.57581898]
[1749999036364,0.0150438,105920.0,105910.0,0.43174105]
[1749999036626,0.0150438,105920.0,105910.0,0.63170105]
[1749999036857,0.0150438,105920.0,105910.0,0.6251049]
[1749999037107,0.0150438,105920.0,105910.0,0.63170105]
[1749999037354,0.0150438,105920.0,105910.0,0.5833849]
[1749999037571,0.0150438,105920.0,105910.0,0.58998094]
[1749999037786,0.0150438,105920.0,105910.0,0.58998081]
[1749999038215,0.0150438,105920.0,105910.0,0.5833849]
[1749999038448,0.0150438,105920.0,105910.0,0.58998077]
[1749999038665,0.0150438,105920.0,105910.0,0.5833849]
[1749999039097,0.0150438,105920.0,105910.0,0.58991372]
[1749999039311,0.0150438,105920.0,105910.0,0.3938449]
[1749999039530,0.0150438,105920.0,105910.0,0.55845372]
[1749999039977,0.0150438,105920.0,105910.0,0.5872549]
[1749999040215,0.0150438,105920.0,105910.0,0.60998372]
[1749999040446,0.0150438,105920.0,105910.0,1.47100053]
[1749999040678,0.01006,105930.0,105920.0,0.7519161]
[1749999040911,0.01006,105930.0,105920.0,1.3436319]
[1749999041163,0.01006,105930.0,105920.0,1.34363105]
[1749999041388,0.01006,105930.0,105920.0,1.34363101]
[1749999041632,0.01006,105930.0,105920.0,0.80847458]
[1749999041858,0.01006,105930.0,105920.0,0.74193318]
[1749999042094,0.01006,105930.0,105920.0,1.27708959]
[1749999042590,0.01006,105930.0,105920.0,0.74193318]
[1749999042813,0.01006,105930.0,105920.0,0.74593318]
[1749999043262,0.01006,105930.0,105920.0,0.95685318]
[1749999043485,0.01006,105930.0,105920.0,1.49316959]
[1749999043706,0.01006,105930.0,105920.0,0.95801318]
[1749999044146,0.01006,105930.0,105920.0,0.74593318]
[1749999044372,0.01006,105930.0,105920.0,0.82243324]
[1749999044598,0.01006,105930.0,105920.0,1.02010309]
[1749999044823,0.01006,105930.0,105920.0,0.80790309]
[1749999045108,0.01006,105930.0,105920.0,0.95465309]
[1749999045551,0.01006,105930.0,105920.0,0.78897309]
[1749999045775,0.01006,105930.0,105920.0,0.95473309]
[1749999047551,0.01006,105930.0,105920.0,1.4898895]
[1749999048215,0.01006,105930.0,105920.0,0.95473309]
[1749999048936,0.01006,105930.0,105920.0,0.95481309]
[1749999050665,0.58338543,105960.0,105950.0,0.21708244]
[1749999050881,0.58352719,105960.0,105950.0,0.4333969]
[1749999051333,0.5835272,105960.0,105950.0,0.4333969]
[1749999051800,0.5855272,105960.0,105950.0,0.4333969]
[1749999052017,0.58552719,105960.0,105950.0,0.4333969]
[1749999052232,0.07428057,105960.0,105950.0,0.4333969]
[1749999052451,0.08371729,105960.0,105950.0,0.4333969]
[1749999052667,0.57666757,105960.0,105950.0,0.4333969]
[1749999052843,0.56723085,105960.0,105950.0,0.4333969]
[1749999053083,0.57609032,105960.0,105950.0,0.4333969]
[1749999053504,0.59496394,105960.0,105950.0,0.4333969]
[1749999053731,0.59554154,105960.0,105950.0,0.4333969]
[1749999053949,0.59554154,105960.0,105950.0,0.4331969]
[1749999054158,0.88987848,105960.0,105950.0,0.05047446]
[1749999054365,0.87100513,105960.0,105950.0,0.18815664]
[1749999054576,0.87042782,105960.0,105950.0,0.37692492]
[1749999054785,0.59496467,105960.0,105950.0,0.41467731]
[1749999055007,0.60440192,105960.0,105950.0,0.41467731]
[1749999055214,0.59496467,105960.0,105950.0,0.41467731]
[1749999055426,0.59496457,105960.0,105950.0,0.41467731]
[1749999055630,0.58552749,105960.0,105950.0,0.41467731]
[1749999055837,0.60440176,105960.0,105950.0,0.40523952]
[1749999056124,0.60497941,105960.0,105950.0,0.40523952]
[1749999056375,0.61383928,105960.0,105950.0,0.40523952]
[1749999056590,0.07428082,105960.0,105950.0,0.51091907]
[1749999056798,0.05878046,105960.0,105950.0,0.53891689]
[1749999057019,0.04992095,105960.0,105950.0,0.53891689]
[1749999057297,0.57946383,105960.0,105950.0,0.51060291]
[1749999057522,0.59504128,105960.0,105950.0,0.51091925]
[1749999057751,0.04358058,105960.0,105950.0,0.56681586]
[1749999057965,0.03472095,105960.0,105950.0,0.53881804]
[1749999058173,0.54539034,105960.0,105950.0,0.56681586]
[1749999058391,0.55153085,105960.0,105950.0,0.53881804]
[1749999058602,0.56039038,105960.0,105950.0,0.53881804]
[1749999058822,0.55153085,105960.0,105950.0,0.53881804]
[1749999059037,0.04358046,105960.0,105950.0,0.53881804]
[1749999059249,0.00242605,105960.0,105950.0,0.56681586]
[1749999061001,0.03030249,105960.0,105950.0,0.56681586]
[1749999062422,0.03030249,105960.0,105950.0,0.40113586]
[1749999062628,0.03030249,105960.0,105950.0,0.56713586]
[1749999062849,0.00242605,105960.0,105950.0,0.56713586]
[1749999063294,0.00242605,105960.0,105950.0,0.40113586]
[1749999063513,0.00242605,105960.0,105950.0,0.56709586]
[1749999063739,0.00242605,105960.0,105950.0,0.40113586]
[1749999064039,0.00242605,105960.0,105950.0,0.56709586]
[1749999064486,0.00242605,105960.0,105950.0,0.56713586]
[1749999064701,0.00242605,105960.0,105950.0,0.40113586]
[1749999064908,0.00242605,105960.0,105950.0,0.56709586]
[1749999065558,0.00242605,105960.0,105950.0,0.60442628]
[1749999066217,0.01186277,105960.0,105950.0,0.43846628]
[1749999066447,0.02796277,105960.0,105950.0,0.60442628]
[1749999066949,0.03739967,105960.0,105950.0,0.60442628]
[1749999067163,0.56752123,105960.0,105950.0,0.56708979]
[1749999067384,0.58262123,105960.0,105950.0,0.52975937]
[1749999067605,0.58262123,105960.0,105950.0,0.52975928]
[1749999067862,0.00242605,105960.0,105950.0,0.40422753]
[1749999068081,0.00042605,105960.0,105950.0,1.66440235]
[1749999068293,0.01,105980.0,105970.0,0.26378232]
[1749999068556,0.01,105980.0,105970.0,0.62436761]
[1749999068799,0.01,105980.0,105970.0,0.60982676]
[1749999069039,0.01,105980.0,105970.0,0.60998676]
[1749999069455,0.01,105980.0,105970.0,0.44266676]
[1749999069667,0.01,105980.0,105970.0,0.60998676]
[1749999070331,0.01,105980.0,105970.0,0.42626676]
[1749999070535,0.01,105980.0,105970.0,0.51887987]
[1749999070744,0.01,105980.0,105970.0,0.57483715]
[1749999070951,0.54488065,105980.0,105970.0,0.39171715]
[1749999071171,0.01,105980.0,105970.0,0.59642947]
[1749999071391,0.57061576,105980.0,105970.0,0.42059347]
[1749999071666,0.66542091,105980.0,105970.0,0.56945922]
[1749999071878,0.58571576,105980.0,105970.0,0.41149522]
[1749999072095,0.58571576,105980.0,105970.0,0.57889522]
[1749999072096,0.57628065,105980.0,105970.0,0.57889522]
[1749999072727,0.57628065,105980.0,105970.0,0.57789522]
[1749999072966,0.06127005,105980.0,105970.0,0.57789522]
[1749999073183,0.07070543,105980.0,105970.0,0.56845922]
[1749999073387,0.07070543,105980.0,105970.0,0.54958677]
[1749999073597,0.08014099,105980.0,105970.0,0.4010594]
[1749999073809,0.07070543,105980.0,105970.0,0.58733149]
[1749999074017,0.77040787,105980.0,105970.0,0.18401757]
[1749999074233,0.76097276,105980.0,105970.0,0.31406525]
[1749999074437,0.76097276,105980.0,105970.0,0.32350188]
[1749999074647,0.76097276,105980.0,105970.0,0.31410525]
[1749999074860,0.75153738,105980.0,105970.0,0.14670525]
[1749999075076,0.0518352,105980.0,105970.0,0.55007654]
[1749999075288,0.05560552,105980.0,105970.0,0.55007654]
[1749999075500,0.05560552,105980.0,105970.0,0.54064054]
[1749999075719,0.07447673,105980.0,105970.0,0.54064063]
[1749999075924,0.08014108,105980.0,105970.0,0.55007681]
[1749999076143,0.06127014,105980.0,105970.0,0.39211281]
[1749999076364,0.02043494,105980.0,105970.0,0.39211281]
[1749999076579,0.02987014,105980.0,105970.0,0.55943281]
[1749999076828,0.05530552,105980.0,105970.0,0.55947281]
[1749999077024,0.06474108,105980.0,105970.0,0.55007681]
[1749999077242,0.13853213,105980.0,105970.0,0.5595129]
[1749999077450,0.13853213,105980.0,105970.0,0.38267681]
[1749999077662,0.14796778,105980.0,105970.0,0.55003681]
[1749999077882,0.06474099,105980.0,105970.0,0.54999681]
[1749999078130,0.25345664,105980.0,105970.0,0.33291525]
[1749999078347,0.26865664,105980.0,105970.0,0.49370106]
[1749999078563,0.75133756,105980.0,105970.0,0.20876664]
[1749999078780,0.84748678,105980.0,105970.0,0.02247664]
[1749999079231,0.75133756,105980.0,105970.0,0.02247664]
[1749999079730,0.74190209,105980.0,105970.0,0.02247664]
[1749999079949,0.78970209,105980.0,105970.0,0.02247664]
[1749999080605,0.74190209,105980.0,105970.0,0.02247664]
[1749999080844,0.78970209,105980.0,105970.0,0.02247664]
[1749999081955,0.78026635,105980.0,105970.0,0.02247664]
[1749999082166,0.83072643,105980.0,105970.0,0.02247664]
[1749999083786,0.32917493,105980.0,105970.0,0.02247664]
[1749999084011,0.83072643,105980.0,105970.0,0.02247664]
[1749999084236,0.78026635,105980.0,105970.0,0.02247664]
[1749999085311,0.23091485,105980.0,105970.0,0.02247664]
[1749999085579,0.78026635,105980.0,105970.0,0.02247664]
[1749999086012,0.22946929,105970.0,105960.0,0.16712]
[1749999086226,0.00943698,105960.0,105950.0,0.2823809]
[1749999086437,0.02831095,105960.0,105950.0,0.40104074]
[1749999086655,0.77337951,105960.0,105950.0,0.08771646]
[1749999086915,0.55112591,105960.0,105950.0,0.22062398]
[1749999087170,0.55112591,105960.0,105950.0,0.41609778]
[1749999087171,0.02473681,105960.0,105950.0,0.41609778]
[1749999087387,0.03417388,105960.0,105950.0,0.41617778]
[1749999087613,0.05304847,105960.0,105950.0,0.40974008]
[1749999087827,0.04361113,105960.0,105950.0,0.42861574]
[1749999088031,0.04361113,105960.0,105950.0,0.42561574]
[1749999088246,0.04461113,105960.0,105950.0,0.41617795]
[1749999088495,0.03517388,105960.0,105950.0,0.42561574]
[1749999088712,0.01987388,105960.0,105950.0,0.42561574]
[1749999088919,0.02931113,105960.0,105950.0,0.42561574]
[1749999089132,0.02931104,105960.0,105950.0,0.25837574]
[1749999089351,0.03517388,105960.0,105950.0,0.41617795]
[1749999089567,0.03517388,105960.0,105950.0,0.42561574]
[1749999090041,0.04461104,105960.0,105950.0,0.42561574]
[1749999090251,0.03517388,105960.0,105950.0,0.42561574]
[1749999090461,0.04461113,105960.0,105950.0,0.41617795]
[1749999090688,0.04461113,105960.0,105950.0,0.42561574]
[1749999090937,0.03517388,105960.0,105950.0,0.42561574]
[1749999091146,0.01043672,105960.0,105950.0,0.3546175]
[1749999091368,0.001,105960.0,105950.0,0.5380175]
[1749999091594,0.001,105960.0,105950.0,0.5380575]
[1749999091817,0.01043672,105960.0,105950.0,0.5380575]
[1749999092024,0.01043672,105960.0,105950.0,0.3710175]
[1749999092230,0.01043672,105960.0,105950.0,0.5380175]
[1749999092452,0.01987353,105960.0,105950.0,0.49920021]
[1749999092677,0.02931043,105960.0,105950.0,0.49916021]
[1749999092888,0.57390048,105960.0,105950.0,0.49916021]
[1749999093115,0.58333764,105960.0,105950.0,0.49916021]
[1749999093574,0.58333764,105960.0,105950.0,0.47084659]
[1749999093801,0.58333826,105960.0,105950.0,0.48028455]
[1749999094028,0.57390145,105960.0,105950.0,0.48028464]
[1749999094241,0.59010145,105960.0,105950.0,0.37460492]
[1749999094476,0.59010154,105960.0,105950.0,0.38404297]
[1749999094692,0.59010154,105960.0,105950.0,0.39348093]
[1749999095151,0.59010154,105960.0,105950.0,0.38404297]
[1749999095364,0.59010154,105960.0,105950.0,0.39348093]
[1749999095541,0.59010145,105960.0,105950.0,0.38404297]
[1749999095751,0.59953888,105960.0,105950.0,0.38404297]
[1749999095948,0.59953888,105960.0,105950.0,0.39348093]
[1749999096148,0.59953888,105960.0,105950.0,0.39324093]
[1749999096446,0.59971105,105960.0,105950.0,0.38380306]
[1749999096710,0.59971105,105960.0,105950.0,0.39324111]
[1749999096918,0.59027362,105960.0,105950.0,0.40267907]
[1749999097125,0.05512064,105960.0,105950.0,0.40267853]
[1749999097341,0.59027362,105960.0,105950.0,0.39324066]
[1749999097554,0.001,105960.0,105950.0,0.40250592]
[1749999097770,0.001,105960.0,105950.0,0.51534768]
[1749999097980,0.01043672,105960.0,105950.0,0.51534768]
[1749999098695,0.0198737,105960.0,105950.0,0.51534768]
[1749999098869,0.01987362,105960.0,105950.0,0.50590989]
[1749999099111,0.001,105960.0,105950.0,0.51534768]
[1749999099288,0.001,105960.0,105950.0,0.53154768]
[1749999099491,0.01043681,105960.0,105950.0,0.53154768]
[1749999099721,0.001,105960.0,105950.0,0.53154768]
[1749999099944,0.001,105960.0,105950.0,0.55047768]
[1749999100160,0.001,105960.0,105950.0,0.53154768]
[1749999100368,0.01043681,105960.0,105950.0,0.53154768]
[1749999100588,0.001,105960.0,105950.0,0.53154768]
[1749999108821,0.01043672,105960.0,105950.0,0.53154768]
[1749999109024,0.001,105960.0,105950.0,0.53154768]
[1749999110053,0.001,105960.0,105950.0,0.51534768]
[1749999111064,0.001,105960.0,105950.0,0.53194768]
[1749999111489,0.01043672,105960.0,105950.0,0.51534768]
[1749999112000,0.01043672,105960.0,105950.0,0.34862768]
[1749999112461,0.67948722,105960.0,105950.0,0.28483787]
[1749999112670,0.68624979,105960.0,105950.0,0.4785122]
[1749999112875,0.0709475,105960.0,105950.0,0.32258999]
[1749999113083,0.59010048,105960.0,105950.0,0.33202786]
[1749999113287,0.59010048,105960.0,105950.0,0.49734786]
[1749999113501,0.58066341,105960.0,105950.0,0.49734786]
[1749999113682,0.59010048,105960.0,105950.0,0.49734786]
[1749999114174,0.56446341,105960.0,105950.0,0.49734786]
[1749999114379,0.01043672,105960.0,105950.0,0.49734786]
[1749999114582,0.001,105960.0,105950.0,0.49734786]
[1749999114913,0.01043681,105960.0,105950.0,0.49734786]
[1749999115543,0.01043672,105960.0,105950.0,0.49734786]
[1749999116404,0.01987362,105960.0,105950.0,0.49734786]
[1749999117001,0.01987353,105960.0,105950.0,0.49734786]
[1749999117207,0.01043672,105960.0,105950.0,0.49734786]
[1749999117397,0.001,105960.0,105950.0,0.51254786]
[1749999118179,0.01043681,105960.0,105950.0,0.51254786]
[1749999118395,0.0104369,105960.0,105950.0,0.49734786]
[1749999118722,0.001,105960.0,105950.0,0.49734786]
[1749999118889,0.01043681,105960.0,105950.0,0.49734786]
[1749999119095,0.001,105960.0,105950.0,0.49734786]
[1749999119315,0.001,105960.0,105950.0,0.33202786]
[1749999119492,0.001,105960.0,105950.0,0.49682786]
[1749999119696,0.01043681,105960.0,105950.0,0.49682786]
[1749999120168,0.01043681,105960.0,105950.0,0.33202786]
[1749999120519,0.01043681,105960.0,105950.0,0.49666786]
[1749999121618,0.56188979,105960.0,105950.0,0.28483787]
[1749999121847,0.59706385,105960.0,105950.0,0.4871899]
[1749999122048,0.59706376,105960.0,105950.0,0.4871899]
[1749999122295,0.04561069,105960.0,105950.0,0.4871899]
[1749999122501,0.01043681,105960.0,105950.0,0.4871899]
[1749999122713,0.001,105960.0,105950.0,0.4871899]
[1749999122928,0.001,105960.0,105950.0,0.5023899]
[1749999123353,0.001,105960.0,105950.0,0.5182899]
[1749999124799,0.001,105960.0,105950.0,0.3536899]
[1749999125005,0.55502686,105960.0,105950.0,0.30371424]
[1749999125185,0.65702803,105960.0,105950.0,0.4774461]
[1749999125422,0.60650136,105960.0,105950.0,0.48684424]
[1749999125634,0.61593888,105960.0,105950.0,0.49628229]
[1749999125847,0.80468935,105960.0,105950.0,0.48684424]
[1749999126059,0.80368935,105960.0,105950.0,0.4774061]
[1749999126269,0.8629199,105960.0,105950.0,0.4774061]
[1749999126458,0.85348292,105960.0,105950.0,0.48880451]
[1749999126610,0.85348292,105960.0,105950.0,0.47936628]
[1749999126805,0.85348292,105960.0,105950.0,0.12661017]
[1749999126999,0.85348292,105960.0,105950.0,0.48897677]
[1749999127212,0.84404576,105960.0,105950.0,0.16612]
[1749999127420,0.84404576,105960.0,105950.0,0.16608]
[1749999127908,0.84404576,105960.0,105950.0,0.002]
[1749999128076,0.84404576,105960.0,105950.0,0.16608]
[1749999128220,0.84404576,105960.0,105950.0,0.002]
[1749999128426,0.84404576,105960.0,105950.0,0.16604]
[1749999129067,0.84404576,105960.0,105950.0,0.002]
[1749999129266,6.36054029,105960.0,105950.0,0.002]
[1749999129670,5.82538731,105960.0,105950.0,0.002]
[1749999129875,5.82538731,105960.0,105950.0,0.001]
[1749999130097,5.82538731,105960.0,105940.0,0.16388]
[1749999130098,0.23040651,105950.0,105940.0,0.18281]
[1749999130295,0.86170871,105950.0,105940.0,0.19239101]
[1749999130492,0.77499763,105950.0,105940.0,0.39061623]
[1749999130699,0.77499763,105950.0,105940.0,0.38117711]
[1749999130921,0.77499763,105950.0,105940.0,0.39061632]
[1749999131116,0.77499763,105950.0,105940.0,0.38117711]
[1749999131321,0.77499763,105950.0,105940.0,0.40005544]
[1749999131526,0.77499763,105950.0,105940.0,0.39061632]
[1749999132170,0.77499763,105950.0,105940.0,0.40005544]
[1749999132455,0.77499763,105950.0,105940.0,0.24117544]
[1749999132698,1.21114685,105950.0,105940.0,0.02407171]
[1749999133107,5.92115585,105950.0,105940.0,0.02407171]
[1749999134804,5.82500663,105950.0,105940.0,0.02407171]
[1749999135018,1.16035763,105950.0,105940.0,0.02407171]
[1749999135443,1.11499763,105950.0,105940.0,0.02407171]
[1749999135674,0.39107637,105950.0,105940.0,0.22229711]
[1749999135888,0.40051433,105950.0,105940.0,0.24117526]
[1749999136098,0.40051433,105950.0,105940.0,0.23173623]
[1749999136319,0.37447601,105950.0,105940.0,0.24117526]
[1749999136509,0.38391433,105950.0,105940.0,0.23173623]
[1749999136711,0.37447601,105950.0,105940.0,0.24117526]
[1749999136923,0.37447601,105950.0,105940.0,0.25061411]
[1749999137131,0.38391433,105950.0,105940.0,0.25061411]
[1749999137338,0.38391433,105950.0,105940.0,0.2506142]
[1749999137747,0.37447601,105950.0,105940.0,0.26005297]
[1749999137975,0.38391433,105950.0,105940.0,0.26005305]
[1749999138187,0.37447548,105950.0,105940.0,0.28808238]
[1749999138403,0.37775176,105950.0,105940.0,0.28249257]
[1749999138617,0.24593183,105970.0,105950.0,0.19820615]
[1749999138618,0.24795783,105970.0,105950.0,0.19820615]
[1749999138835,0.3588737,105960.0,105950.0,0.23952177]
[1749999139059,0.34,105960.0,105950.0,0.41195973]
[1749999140124,0.34,105960.0,105950.0,0.41295973]
[1749999141695,0.34,105960.0,105950.0,0.44098923]
[1749999142001,0.34,105960.0,105950.0,0.44198923]
[1749999143856,0.45154922,105960.0,105950.0,0.44174923]
[1749999144497,0.89055298,105960.0,105950.0,0.44174923]
[1749999144704,0.87515298,105960.0,105950.0,0.44174923]
[1749999144909,0.87515298,105960.0,105950.0,0.46067923]
[1749999145118,0.34,105960.0,105950.0,0.46067923]
[1749999146729,0.3704,105970.0,105960.0,0.21706196]
[1749999146940,0.89998881,105970.0,105960.0,0.23950156]
[1749999147156,0.89055298,105970.0,105960.0,0.23950156]
[1749999147807,0.8999889,105970.0,105960.0,0.23950156]
[1749999148059,0.9009889,105970.0,105960.0,0.23950156]
[1749999148698,0.89255298,105970.0,105960.0,0.23950156]
[1749999148912,0.90198898,105970.0,105960.0,0.23950156]
[1749999149103,0.89255298,105970.0,105960.0,0.23950156]
[1749999149368,0.90198881,105970.0,105960.0,0.23950156]
[1749999149574,0.91142473,105970.0,105960.0,0.23950156]
[1749999149782,0.92086082,105970.0,105960.0,0.23950156]
[1749999151197,0.94669709,105970.0,105960.0,0.23950156]
[1749999151424,0.944697,105970.0,105960.0,0.23950156]
[1749999151750,0.90942473,105970.0,105960.0,0.24050156]
[1749999151954,0.91886082,105970.0,105960.0,0.24050156]
[1749999152430,0.91886082,105970.0,105960.0,0.24150156]
[1749999152650,0.90942473,105970.0,105960.0,0.24150156]
[1749999152873,0.91886073,105970.0,105960.0,0.24150156]
[1749999153352,0.92829691,105970.0,105960.0,0.24150156]
[1749999154023,0.93773327,105970.0,105960.0,0.23206475]
[1749999154308,0.92829691,105970.0,105960.0,0.23206475]
[1749999154523,0.38370775,105970.0,105960.0,0.25093881]
[1749999154746,0.91886073,105970.0,105960.0,0.24150191]
[1749999154971,0.93773389,105970.0,105960.0,0.24150191]
[1749999155202,1.21070767,105970.0,105960.0,0.0244396]
[1749999155899,1.21070767,105970.0,105960.0,0.22262759]
[1749999156125,1.21070767,105970.0,105960.0,0.0244396]
[1749999157343,1.21070767,105970.0,105960.0,0.03387712]
[1749999157843,0.3554,105970.0,105960.0,0.22262759]
[1749999158040,0.8845889,105970.0,105960.0,0.26693908]
[1749999158256,0.34,105970.0,105960.0,0.26693908]
[1749999158577,0.349436,105970.0,105960.0,0.26693908]
[1749999158778,0.349436,105970.0,105960.0,0.25093908]
[1749999159385,0.34,105970.0,105960.0,0.25093908]
[1749999159592,0.87515298,105970.0,105960.0,0.25093908]
[1749999160130,0.87515298,105970.0,105960.0,0.26986908]
[1749999161533,0.88458881,105970.0,105960.0,0.26986908]
[1749999161923,0.87515298,105970.0,105960.0,0.26986908]
[1749999162336,0.89402481,105970.0,105960.0,0.26986908]
[1749999162788,0.99961021,105970.0,105960.0,0.26986908]
[1749999163004,1.01471021,105970.0,105960.0,0.25099502]
[1749999163287,0.47955723,105970.0,105960.0,0.27930615]
[1749999163540,0.94379735,105970.0,105960.0,0.26043227]
[1749999163758,0.94379735,105970.0,105960.0,0.26986934]
[1749999164253,6.52022043,105970.0,105960.0,0.02093]
[1749999164689,5.98506745,105970.0,105960.0,0.02093]
[1749999164906,6.08121667,105970.0,105960.0,0.002]
[1749999165562,6.17745843,105970.0,105960.0,0.002]
[1749999166206,5.64230545,105970.0,105960.0,0.002]
[1749999166407,6.17745843,105970.0,105960.0,0.002]
[1749999167496,6.17725843,105970.0,105960.0,0.002]
[1749999168381,0.57974447,105950.0,105940.0,0.04710121]
[1749999168595,5.90175756,105950.0,105940.0,0.02261054]
[1749999169027,5.8923196,105950.0,105940.0,0.02261054]